bitfinex/quotes_BTCUSD_20240712
["timestamp","ask_amount","ask_price","bid_price","bid_amount"]
[1720774178735,0.174985,57420.0,57419.0,0.34508499]
[1720774179855,0.174985,57420.0,57419.0,0.34908499]
[1720774181088,0.00083,57420.0,57419.0,0.58324299]
[1720774181287,0.00083,57420.0,57419.0,1.27987499]
[1720774181906,0.00083,57420.0,57419.0,1.27587499]
[1720774182059,0.00083,57420.0,57419.0,0.92355899]
[1720774182239,0.00083,57420.0,57419.0,0.58924299]
[1720774182465,0.00083,57420.0,57419.0,0.60324299]
[1720774183302,0.00083,57420.0,57419.0,0.95155899]
[1720774183907,0.00083,57420.0,57419.0,0.93755899]
[1720774184687,0.00083,57420.0,57419.0,0.95155899]
[1720774185807,0.00083,57420.0,57419.0,0.42908499]
[1720774188865,0.00083,57420.0,57419.0,0.95155899]
[1720774190000,0.00075522,57420.0,57419.0,0.95155899]
[1720774194962,0.00075522,57420.0,57419.0,0.60324299]
[1720774195156,0.00075522,57420.0,57419.0,0.42908499]
[1720774195581,0.00075522,57420.0,57419.0,0.36908499]
[1720774195816,0.00075522,57420.0,57419.0,0.42908499]
[1720774197426,0.17491022,57420.0,57419.0,0.42908499]
[1720774197635,0.52322022,57420.0,57419.0,0.36908499]
[1720774198384,0.52322022,57420.0,57419.0,0.36999799]
[1720774200842,0.87153022,57420.0,57419.0,0.22869799]
[1720774201254,0.08213,57430.0,57429.0,1.23042499]
[1720774201255,0.00083,57430.0,57429.0,1.23042499]
[1720774201409,0.00083,57430.0,57429.0,2.37449534]
[1720774201608,0.00083,57430.0,57429.0,2.31619534]
[1720774201822,0.3484059,57455.0,57448.0,0.15078499]
[1720774202022,0.3484059,57455.0,57448.0,0.58083591]
[1720774202023,0.0003069,57455.0,57448.0,0.58083591]
[1720774202640,0.0003069,57455.0,57448.0,0.57735499]
[1720774202847,0.0003069,57455.0,57448.0,1.82177499]
[1720774203053,0.0003069,57455.0,57448.0,1.39663499]
[1720774203263,0.0003069,57455.0,57448.0,1.03949499]
[1720774203481,0.0003069,57455.0,57448.0,1.38763499]
[1720774203685,0.0003069,57455.0,57448.0,0.93949499]
[1720774203882,0.0003069,57455.0,57448.0,1.40163499]
[1720774204724,0.0003069,57455.0,57448.0,1.14185]
[1720774205059,0.0003069,57455.0,57448.0,1.40163499]
[1720774205251,0.0003069,57455.0,57448.0,1.38763499]
[1720774205661,0.0003069,57455.0,57448.0,1.40163499]
[1720774206053,0.0003069,57455.0,57448.0,1.50163499]
[1720774206202,0.0003069,57455.0,57448.0,1.52463499]
[1720774206411,0.0003069,57455.0,57448.0,1.72463499]
[1720774206616,0.0003069,57455.0,57448.0,2.07277499]
[1720774207217,0.0003069,57455.0,57454.0,2.22625299]
[1720774207462,0.0003069,57455.0,57454.0,2.99679734]
[1720774208447,0.011913,57467.0,57466.0,1.37036199]
[1720774208642,0.011913,57467.0,57466.0,1.39336199]
[1720774208851,0.0015,57469.0,57466.0,1.74139299]
[1720774209064,0.173964,57483.0,57482.0,0.19948613]
[1720774209403,0.521883,57484.0,57483.0,0.09078499]
[1720774209602,0.521883,57484.0,57472.0,0.09078499]
[1720774209603,1.16570986,57484.0,57472.0,0.09078499]
[1720774209836,0.521983,57473.0,57472.0,0.09078499]
[1720774210040,0.869972,57473.0,57472.0,0.09078499]
[1720774210729,0.869972,57473.0,57472.0,0.19948613]
[1720774211624,0.869972,57473.0,57472.0,0.21348613]
[1720774212128,0.521983,57473.0,57472.0,0.22748613]
[1720774212639,0.521983,57473.0,57472.0,0.21348613]
[1720774212798,0.521983,57473.0,57472.0,0.22748613]
[1720774213228,0.869972,57473.0,57472.0,0.11878499]
[1720774213572,1.217961,57473.0,57472.0,0.11878499]
[1720774214588,1.449061,57473.0,57472.0,0.028]
[1720774216534,1.79705,57473.0,57472.0,0.028]
[1720774216736,0.348031,57466.0,57459.0,0.09078499]
[1720774216959,0.348031,57466.0,57462.0,0.17589934]
[1720774216960,0.174025,57463.0,57462.0,0.17589934]
[1720774217168,0.522075,57463.0,57462.0,0.17589934]
[1720774217660,1.218175,57463.0,57462.0,0.17589934]
[1720774218428,0.522102,57460.0,57459.0,0.10978499]
[1720774218789,1.218238,57460.0,57459.0,0.10978499]
[1720774219406,1.218238,57460.0,57459.0,0.09078499]
[1720774220009,1.218238,57460.0,57450.0,0.1394]
[1720774220010,0.348086,57457.0,57451.0,0.09078499]
[1720774220204,0.522165,57453.0,57452.0,0.56788499]
[1720774220429,0.870275,57453.0,57452.0,0.09078499]
[1720774220656,1.218385,57453.0,57452.0,0.09078499]
[1720774220858,0.348086,57457.0,57451.0,0.09078499]
[1720774220859,0.522174,57452.0,57451.0,0.09078499]
[1720774221063,1.218406,57452.0,57451.0,0.09078499]
[1720774221256,1.218406,57452.0,57445.0,0.0798]
[1720774221257,0.522201,57449.0,57448.0,0.09078499]
[1720774221488,1.218469,57449.0,57448.0,0.09078499]
[1720774221805,1.566603,57449.0,57448.0,0.09078499]
[1720774222006,1.666603,57449.0,57448.0,0.09078499]
[1720774222730,0.26669019,57449.0,57442.0,0.4771]
[1720774222933,0.522256,57443.0,57442.0,0.4771]
[1720774223147,1.566769,57443.0,57442.0,0.4771]
[1720774224091,1.567769,57443.0,57442.0,0.4821]
[1720774224297,1.567769,57443.0,57442.0,0.005]
[1720774224505,0.522292,57439.0,57438.0,0.17589934]
[1720774224905,0.870487,57439.0,57438.0,0.17589934]
[1720774225086,1.218682,57439.0,57438.0,0.17589934]
[1720774225949,1.218682,57439.0,57438.0,0.29160048]
[1720774225950,1.219682,57439.0,57438.0,0.29160048]
[1720774226297,1.218682,57439.0,57438.0,0.28460048]
[1720774226702,1.219682,57439.0,57438.0,0.29060048]
[1720774227100,1.218682,57439.0,57438.0,0.28460048]
[1720774227301,1.218682,57439.0,57438.0,0.17589934]
[1720774227607,1.219682,57439.0,57438.0,0.09678499]
[1720774227769,1.220682,57439.0,57438.0,0.10378499]
[1720774228384,1.220682,57439.0,57438.0,0.21248613]
[1720774230086,1.220682,57439.0,57438.0,0.21243959]
[1720774230519,1.220682,57439.0,57438.0,0.21335259]
[1720774230718,1.220682,57439.0,57438.0,0.013913]
[1720774230915,1.220682,57439.0,57438.0,0.1837658]
[1720774230916,1.219682,57439.0,57438.0,0.1837658]
[1720774231074,1.219682,57439.0,57438.0,0.1767658]
[1720774231075,1.218682,57439.0,57438.0,0.1767658]
[1720774231279,1.219682,57439.0,57438.0,0.1847658]
[1720774231523,1.220682,57439.0,57438.0,0.30146694]
[1720774232009,1.220682,57439.0,57438.0,0.29346694]
[1720774232246,0.003,57439.0,57438.0,0.44486694]
[1720774232450,0.003,57439.0,57438.0,0.67896694]
[1720774232655,0.002,57439.0,57438.0,0.77096694]
[1720774232875,0.002,57439.0,57438.0,1.34216794]
[1720774233096,0.003,57439.0,57438.0,1.34816794]
[1720774233476,0.003,57439.0,57438.0,1.49636894]
[1720774233682,0.002,57439.0,57438.0,1.49036894]
[1720774233876,0.002,57439.0,57438.0,1.70136894]
[1720774234188,0.001,57439.0,57438.0,2.49077094]
[1720774234507,0.002,57439.0,57438.0,2.50477094]
[1720774235271,0.001,57439.0,57438.0,2.49077094]
[1720774235845,0.002,57439.0,57438.0,2.30477094]
[1720774236078,0.001,57439.0,57438.0,1.94256994]
[1720774236591,0.001,57439.0,57438.0,1.93156994]
[1720774236799,0.174055,57453.0,57452.0,0.19943959]
[1720774237477,0.870275,57453.0,57452.0,0.19943959]
[1720774238324,0.871275,57453.0,57452.0,0.21343959]
[1720774238585,0.870275,57453.0,57452.0,0.21343959]
[1720774239120,0.871275,57453.0,57452.0,0.22743959]
[1720774239888,0.871275,57453.0,57452.0,0.21343959]
[1720774240416,0.871275,57453.0,57452.0,0.22743959]
[1720774241804,0.871275,57453.0,57452.0,0.11873845]
[1720774242536,0.82176199,57453.0,57452.0,0.22743959]
[1720774248393,0.82176199,57453.0,57452.0,0.11873845]
[1720774249798,0.82176199,57453.0,57452.0,0.22743959]
[1720774250012,0.82176199,57453.0,57452.0,0.11873845]
[1720774250121,0.82176199,57453.0,57452.0,0.22743959]
[1720774250829,0.82176199,57453.0,57452.0,0.11873845]
[1720774251832,0.82176199,57453.0,57452.0,0.028]
[1720774252038,0.82176199,57453.0,57452.0,0.11873845]
[1720774252855,0.82176199,57453.0,57452.0,0.028]
[1720774253107,0.82176199,57453.0,57452.0,0.014]
[1720774253309,0.82176199,57453.0,57452.0,0.023]
[1720774253576,0.82076199,57453.0,57452.0,0.009]
[1720774253773,0.82076199,57453.0,57452.0,0.02]
[1720774253774,0.82176199,57453.0,57452.0,0.02]
[1720774254177,0.82206085,57453.0,57452.0,0.02]
[1720774254726,0.82206085,57453.0,57452.0,0.00735627]
[1720774254727,0.92206085,57453.0,57452.0,0.00735627]
[1720774256127,0.00029886,57451.0,57444.0,0.08511435]
[1720774256337,0.0628,57447.0,57441.0,0.09073845]
[1720774256555,0.174088,57442.0,57441.0,0.09073845]
[1720774256778,0.174091,57441.0,57440.0,0.09073845]
[1720774257824,0.1638,57447.0,57438.0,0.000913]
[1720774257825,0.174097,57439.0,57438.0,0.000913]
[1720774257961,0.274097,57439.0,57438.0,0.000913]
[1720774259057,0.274097,57439.0,57438.0,0.09165145]
[1720774260527,0.275097,57439.0,57438.0,0.09865145]
[1720774260707,0.275097,57439.0,57438.0,0.10565145]
[1720774260873,0.276097,57439.0,57438.0,0.09865145]
[1720774261069,0.277097,57439.0,57438.0,0.10365145]
[1720774261254,0.276097,57439.0,57438.0,0.20535259]
[1720774262737,0.05080629,57439.0,57438.0,0.20535259]
[1720774262881,0.002,57439.0,57438.0,0.20935259]
[1720774264023,0.002,57439.0,57438.0,0.28645259]
[1720774264166,0.002,57439.0,57438.0,0.34985259]
[1720774264960,0.0661,57451.0,57438.0,0.34985259]
[1720774264961,0.0661,57451.0,57444.0,0.09073845]
[1720774265162,0.0661,57451.0,57444.0,0.08973845]
[1720774265382,0.00306353,57450.0,57444.0,0.08973845]
[1720774265582,0.0661,57451.0,57444.0,0.08973845]
[1720774265583,0.270209,57449.0,57444.0,0.08973845]
[1720774265824,0.1,57448.0,57444.0,0.08973845]
[1720774266027,0.00306353,57447.0,57444.0,0.08973845]
[1720774266231,0.00306353,57447.0,57443.0,0.08973845]
[1720774266402,0.00306353,57447.0,57444.0,0.08973845]
[1720774266605,0.00306353,57447.0,57445.0,0.08973845]
[1720774267018,0.005,57448.0,57444.0,0.08973845]
[1720774267197,0.005,57448.0,57443.0,0.08511435]
[1720774267409,0.00306353,57447.0,57442.0,0.08973845]
[1720774267604,0.00306353,57448.0,57442.0,0.08973845]
[1720774267805,0.003,57447.0,57444.0,0.001]
[1720774268234,0.22266353,57446.0,57441.0,0.08973845]
[1720774268507,0.00306353,57444.0,57441.0,0.08973845]
[1720774268920,0.1,57445.0,57441.0,0.08973845]
[1720774269555,0.003,57447.0,57441.0,0.08973845]
[1720774269758,0.00306353,57445.0,57441.0,0.08973845]
[1720774269967,0.10306353,57445.0,57441.0,0.08973845]
[1720774270165,0.00029886,57448.0,57441.0,0.08973845]
[1720774270384,0.001,57445.0,57441.0,0.08973845]
[1720774270598,0.001,57445.0,57438.0,0.23115145]
[1720774270850,0.001,57445.0,57441.0,0.08973845]
[1720774271004,0.10029886,57446.0,57441.0,0.09173845]
[1720774271204,0.10029886,57446.0,57441.0,0.08973845]
[1720774271410,0.00029886,57445.0,57438.0,0.23115145]
[1720774271735,0.44099686,57445.0,57438.0,0.23115145]
[1720774271883,0.10306353,57444.0,57438.0,0.23115145]
[1720774272074,0.1,57443.0,57438.0,0.23115145]
[1720774272932,0.1,57443.0,57442.0,0.08973845]
[1720774273195,0.001,57446.0,57445.0,0.19843959]
[1720774274174,0.02006531,57451.0,57445.0,0.19843959]
[1720774274380,0.00083,57453.0,57445.0,0.08973845]
[1720774274659,0.174085,57443.0,57442.0,0.23683845]
[1720774274861,0.274085,57443.0,57442.0,0.09173845]
[1720774276095,0.274085,57443.0,57442.0,0.08973845]
[1720774276721,0.174088,57442.0,57441.0,0.08973845]
[1720774277309,0.174097,57439.0,57438.0,0.17365145]
[1720774277795,0.174097,57439.0,57438.0,0.19935259]
[1720774278163,0.174097,57439.0,57438.0,0.09065145]
[1720774278386,0.174097,57439.0,57438.0,0.000913]
[1720774278571,0.174097,57439.0,57438.0,0.09065145]
[1720774278729,0.174097,57439.0,57438.0,0.000913]
[1720774279141,0.175097,57439.0,57438.0,0.002913]
[1720774279347,0.175097,57439.0,57438.0,0.000913]
[1720774279348,0.174097,57439.0,57438.0,0.000913]
[1720774279903,0.46809586,57439.0,57438.0,0.004]
[1720774280320,0.46809586,57439.0,57430.0,0.18790114]
[1720774280321,0.00029886,57438.0,57430.0,0.0792]
[1720774280537,0.174121,57431.0,57430.0,0.16893845]
[1720774281896,0.174121,57431.0,57430.0,0.002]
[1720774281897,0.175121,57431.0,57430.0,0.002]
[1720774282507,0.175121,57431.0,57430.0,0.007]
[1720774283011,0.175121,57431.0,57430.0,0.002]
[1720774283513,0.176121,57431.0,57430.0,0.016]
[1720774283750,0.176121,57431.0,57430.0,0.10573845]
[1720774283936,0.176121,57431.0,57430.0,0.016]
[1720774288099,0.19565511,57431.0,57430.0,0.016]
[1720774289708,0.29565511,57431.0,57430.0,0.016]
[1720774290874,0.29565511,57431.0,57430.0,0.1639]
[1720774291083,0.29565511,57431.0,57430.0,0.3387528]
[1720774291438,0.29565511,57431.0,57430.0,0.44745394]
[1720774292587,0.19565511,57431.0,57430.0,0.44745394]
[1720774295861,0.03144022,57439.0,57430.0,0.44745394]
[1720774296132,0.00029886,57443.0,57432.0,0.08973845]
[1720774296338,0.544814,57442.0,57434.0,0.08973845]
[1720774296492,0.00029886,57443.0,57434.0,0.08973845]
[1720774296493,0.53287753,57441.0,57434.0,0.08973845]
[1720774296687,0.412914,57440.0,57434.0,0.08973845]
[1720774296903,0.00306353,57439.0,57434.0,0.08973845]
[1720774297297,0.01928067,57443.0,57434.0,0.08973845]
[1720774297614,0.529814,57442.0,57434.0,0.08973845]
[1720774297770,0.00306353,57441.0,57434.0,0.08973845]
[1720774297974,0.412914,57440.0,57433.0,0.00348196]
[1720774298173,0.10306353,57439.0,57431.0,0.08973845]
[1720774298458,0.10306353,57439.0,57434.0,0.002]
[1720774298459,0.262175,57438.0,57434.0,0.002]
[1720774298614,0.768709,57437.0,57432.0,0.08973845]
[1720774298821,0.00112886,57438.0,57431.0,0.08973845]
[1720774299065,0.673195,57437.0,57434.0,0.006]
[1720774299265,0.1,57436.0,57434.0,0.003]
[1720774299439,0.00112886,57438.0,57434.0,0.003]
[1720774299661,0.574546,57437.0,57434.0,0.004]
[1720774299866,0.1,57436.0,57432.0,0.007]
[1720774300400,0.1,57436.0,57432.0,0.08973845]
[1720774300987,0.00183,57438.0,57434.0,0.006]
[1720774301215,0.11689611,57469.0,57444.0,0.08511435]
[1720774301423,0.2,57460.0,57445.0,0.00306353]
[1720774301622,0.069828,57446.0,57445.0,0.00113794]
[1720774301773,1.93365,57446.0,57444.0,0.08411435]
[1720774301968,1.62422859,57445.0,57444.0,0.08311435]
[1720774302168,1.79363425,57445.0,57444.0,0.08311435]
[1720774302406,2.38596771,57445.0,57438.0,0.08511435]
[1720774302568,1.608505,57444.0,57438.0,0.08511435]
[1720774303308,0.1,57443.0,57438.0,0.08511435]
[1720774303514,1.689227,57442.0,57438.0,0.08511435]
[1720774303716,0.1,57441.0,57438.0,0.08511435]
[1720774304064,1.580337,57440.0,57438.0,0.08511435]
[1720774304280,0.1,57439.0,57436.0,0.1]
[1720774304479,0.86709759,57438.0,57436.0,0.1]
[1720774304597,0.965172,57437.0,57436.0,0.1]
[1720774305185,0.965172,57437.0,57434.0,0.1]
[1720774305336,0.1,57437.0,57436.0,0.1]
[1720774305495,0.1,57437.0,57436.0,0.106]
[1720774305696,0.1,57437.0,57436.0,0.1]
[1720774306143,0.966172,57437.0,57436.0,0.111]
[1720774306560,0.75660527,57437.0,57436.0,0.111]
[1720774306776,0.756606,57437.0,57436.0,0.107]
[1720774307357,0.756606,57437.0,57436.0,0.114]
[1720774307741,0.756606,57437.0,57436.0,0.107]
[1720774308348,0.756606,57437.0,57436.0,0.108]
[1720774309201,0.756606,57437.0,57436.0,0.101]
[1720774309378,0.757606,57437.0,57436.0,0.101]
[1720774309554,0.8344966,57437.0,57436.0,0.101]
[1720774310428,0.8344966,57437.0,57436.0,0.1]
[1720774310605,0.9157966,57437.0,57436.0,0.1]
[1720774310804,0.9157966,57437.0,57433.0,0.04544]
[1720774311016,0.9157966,57437.0,57432.0,0.07271536]
[1720774311017,0.0813,57434.0,57432.0,0.07271536]
[1720774311317,0.731899,57433.0,57432.0,0.07271536]
[1720774311547,0.831899,57433.0,57432.0,0.07271536]
[1720774311958,0.636557,57433.0,57432.0,0.07271536]
[1720774312396,0.636557,57433.0,57432.0,0.07771536]
[1720774312753,0.636557,57433.0,57432.0,0.07271536]
[1720774313336,0.636557,57433.0,57432.0,0.07671536]
[1720774313962,0.636557,57433.0,57432.0,0.08071536]
[1720774314218,0.637557,57433.0,57432.0,0.08071536]
[1720774314576,0.6591032,57433.0,57432.0,0.08071536]
[1720774314787,0.637557,57433.0,57432.0,0.08071536]
[1720774317832,0.637557,57433.0,57432.0,0.05671537]
[1720774318032,0.637557,57433.0,57430.0,0.000913]
[1720774318234,2.39074059,57432.0,57421.0,0.5771]
[1720774318477,2.39074059,57432.0,57420.0,0.21971824]
[1720774318478,0.0813,57422.0,57420.0,0.21971824]
[1720774318657,0.0813,57422.0,57420.0,0.11971824]
[1720774318857,0.524616,57421.0,57420.0,0.07493824]
[1720774319057,0.624616,57421.0,57420.0,0.07493824]
[1720774319263,0.624616,57421.0,57420.0,0.03590464]
[1720774319585,0.6996676,57421.0,57416.0,0.0809]
[1720774319798,0.0813,57417.0,57413.0,0.1]
[1720774319991,0.415177,57416.0,57413.0,0.1]
[1720774320145,0.0813,57414.0,57412.0,0.078]
[1720774320552,0.1,57420.0,57412.0,0.078]
[1720774320758,0.2033,57417.0,57411.0,0.1]
[1720774320937,0.0446,57415.0,57409.0,0.000913]
[1720774321142,0.1091493,57414.0,57409.0,0.000913]
[1720774321521,0.1,57413.0,57409.0,0.000913]
[1720774321685,0.1,57413.0,57411.0,0.1]
[1720774322089,0.1,57413.0,57409.0,0.000913]
[1720774322287,0.61974,57412.0,57408.0,0.08511435]
[1720774322495,0.1,57411.0,57408.0,0.08511435]
[1720774322704,1.039987,57410.0,57409.0,0.001]
[1720774322872,1.139987,57410.0,57409.0,0.001]
[1720774323071,1.1210637,57410.0,57408.0,0.08511435]
[1720774323301,1.279827,57409.0,57408.0,0.08511435]
[1720774323534,1.111498,57409.0,57402.0,0.1]
[1720774323723,1.34479486,57408.0,57401.0,0.22941435]
[1720774323930,1.706892,57407.0,57401.0,0.07608116]
[1720774324253,1.68980959,57406.0,57401.0,0.07608116]
[1720774324455,1.634771,57405.0,57397.0,0.1]
[1720774324672,1.06796259,57404.0,57395.0,0.03590464]
[1720774324895,1.06796259,57404.0,57394.0,0.109097]
[1720774324896,1.38406,57403.0,57394.0,0.109097]
[1720774325105,1.40663799,57402.0,57394.0,0.109097]
[1720774325273,1.076075,57401.0,57394.0,0.009097]
[1720774325487,0.1,57400.0,57394.0,0.009097]
[1720774325680,0.00192559,57399.0,57394.0,0.00734828]
[1720774325881,0.11780006,57398.0,57394.0,0.00734828]
[1720774326059,0.0609,57396.0,57389.0,0.1015]
[1720774326264,0.56339559,57395.0,57389.0,0.1015]
[1720774326457,0.56339559,57395.0,57389.0,0.0015]
[1720774326458,0.632639,57394.0,57389.0,0.0015]
[1720774326645,1.403735,57393.0,57389.0,0.0015]
[1720774326890,0.1,57392.0,57389.0,0.0015]
[1720774327216,1.25779541,57392.0,57389.0,0.0015]
[1720774327345,1.25779541,57392.0,57385.0,0.4771]
[1720774327346,0.734921,57391.0,57385.0,0.4771]
[1720774327546,1.400875,57390.0,57381.0,0.1]
[1720774327765,1.30280059,57389.0,57381.0,0.1]
[1720774327968,1.155685,57388.0,57381.0,0.1]
[1720774328161,0.90873,57387.0,57380.0,0.009097]
[1720774328368,0.2702374,57386.0,57381.0,0.1]
[1720774328841,0.1,57386.0,57381.0,0.1]
[1720774329469,0.001,57387.0,57381.0,0.1]
[1720774329692,0.74139,57386.0,57381.0,0.1]
[1720774329893,0.1,57385.0,57383.0,0.08511435]
[1720774330478,0.1,57385.0,57384.0,0.2431]
[1720774331211,0.002,57386.0,57385.0,0.1]
[1720774331212,0.001,57386.0,57385.0,0.1]
[1720774331518,0.001,57386.0,57385.0,0.099]
[1720774331948,0.00192559,57392.0,57387.0,0.099]
[1720774332153,1.062569,57391.0,57389.0,0.08511435]
[1720774332304,0.10192559,57390.0,57389.0,0.08411435]
[1720774332505,0.37255959,57390.0,57389.0,0.08411435]
[1720774332927,0.33455959,57390.0,57389.0,0.08311435]
[1720774333085,0.332634,57390.0,57389.0,0.08311435]
[1720774333611,0.1,57390.0,57389.0,0.08311435]
[1720774333811,0.1,57390.0,57389.0,0.08211435]
[1720774334056,0.00192559,57391.0,57389.0,0.08211435]
[1720774334259,0.169071,57390.0,57389.0,0.08211435]
[1720774334509,0.270071,57390.0,57389.0,0.08211435]
[1720774336061,0.101,57390.0,57389.0,0.11801899]
[1720774336439,0.001,57390.0,57389.0,0.11801899]
[1720774336595,0.101,57390.0,57389.0,0.11801899]
[1720774336803,0.101,57390.0,57389.0,0.49601899]
[1720774337003,0.101,57390.0,57389.0,0.36221899]
[1720774337207,0.1,57390.0,57389.0,0.36221899]
[1720774337590,0.1,57390.0,57389.0,0.56221899]
[1720774337790,0.01948942,57394.0,57393.0,0.098]
[1720774338018,0.392,57394.0,57393.0,0.098]
[1720774338217,1.025501,57400.0,57394.0,0.098]
[1720774338546,0.10192559,57399.0,57398.0,0.08511435]
[1720774338718,1.08742659,57399.0,57398.0,0.08511435]
[1720774338892,1.085501,57399.0,57398.0,0.08511435]
[1720774339117,1.20464823,57399.0,57398.0,0.08511435]
[1720774339295,1.20464823,57399.0,57395.0,0.08511435]
[1720774339562,0.00192559,57397.0,57395.0,0.08511435]
[1720774339691,0.735235,57396.0,57395.0,0.08511435]
[1720774339902,0.835235,57396.0,57395.0,0.08511435]
[1720774340111,0.9438646,57396.0,57395.0,0.08511435]
[1720774340909,0.9508646,57396.0,57395.0,0.08511435]
[1720774342403,0.3572,57396.0,57395.0,0.08511435]
[1720774342606,0.107,57396.0,57395.0,0.08511435]
[1720774342828,0.3228,57396.0,57395.0,0.08511435]
[1720774343034,0.674016,57396.0,57395.0,0.08511435]
[1720774343368,0.551576,57396.0,57395.0,0.08511435]
[1720774343569,0.42829,57396.0,57395.0,0.08511435]
[1720774343772,0.47391782,57396.0,57395.0,0.08511435]
[1720774345816,0.45179082,57396.0,57395.0,0.08511435]
[1720774346178,0.31581282,57396.0,57395.0,0.08511435]
[1720774346391,0.28581282,57396.0,57395.0,0.08511435]
[1720774346594,0.38036582,57396.0,57395.0,0.12101899]
[1720774347312,0.38036582,57396.0,57395.0,0.03590464]
[1720774347711,0.05258191,57396.0,57395.0,0.03590464]
[1720774347913,0.8851,57398.0,57395.0,0.03590464]
[1720774348155,0.011,57399.0,57395.0,0.03590464]
[1720774348156,0.51834359,57397.0,57395.0,0.03590464]
[1720774348361,0.210754,57396.0,57395.0,0.03590464]
[1720774348737,0.292154,57396.0,57395.0,0.03590464]
[1720774348935,0.299154,57396.0,57395.0,0.03590464]
[1720774349691,0.292154,57396.0,57395.0,0.03590464]
[1720774349889,1.093938,57396.0,57395.0,0.03590464]
[1720774350078,0.1844,57396.0,57395.0,0.03590464]
[1720774350249,0.1914,57396.0,57395.0,0.03690464]
[1720774350474,1.203938,57396.0,57395.0,0.03690464]
[1720774350677,1.196938,57396.0,57395.0,0.03590464]
[1720774350830,1.199938,57396.0,57395.0,0.03590464]
[1720774351760,1.30977216,57396.0,57395.0,0.03590464]
[1720774351984,0.753322,57396.0,57395.0,0.03590464]
[1720774352360,0.753322,57396.0,57395.0,0.00423464]
[1720774352560,0.753322,57396.0,57394.0,0.098]
[1720774352784,0.823396,57395.0,57391.0,0.00113794]
[1720774353002,0.0814,57392.0,57391.0,0.00113794]
[1720774354625,0.0814,57392.0,57391.0,0.00513794]
[1720774354802,0.0814,57392.0,57389.0,0.055518]
[1720774355000,1.12117353,57391.0,57385.0,0.0611]
[1720774355204,0.0814,57386.0,57385.0,0.0611]
[1720774355405,0.0814,57386.0,57383.0,0.66021435]
[1720774355406,0.571089,57386.0,57383.0,0.66021435]
[1720774355605,0.15741525,57385.0,57383.0,0.08511435]
[1720774355947,0.1,57385.0,57383.0,0.08511435]
[1720774356862,0.00306353,57383.0,57380.0,0.107097]
[1720774357032,1.021659,57382.0,57380.0,0.107097]
[1720774357232,1.005859,57381.0,57380.0,0.107097]
[1720774357396,0.905859,57381.0,57380.0,0.107097]
[1720774357605,1.005859,57381.0,57380.0,0.107097]
[1720774357804,0.954469,57381.0,57380.0,0.107097]
[1720774358432,0.330166,57381.0,57380.0,0.107097]
[1720774358632,0.330166,57381.0,57380.0,0.307097]
[1720774359340,0.273766,57381.0,57380.0,0.308097]
[1720774359540,0.273766,57381.0,57380.0,0.108097]
[1720774359736,0.273766,57381.0,57380.0,0.107097]
[1720774359939,0.273766,57381.0,57380.0,0.110097]
[1720774361697,0.3092826,57381.0,57380.0,0.110097]
[1720774361898,0.273766,57381.0,57380.0,0.110097]
[1720774363150,0.1,57381.0,57380.0,0.110097]
[1720774363353,0.17378,57381.0,57380.0,0.110097]
[1720774363557,0.27378,57381.0,57380.0,0.110097]
[1720774363906,0.27378,57381.0,57380.0,0.310097]
[1720774364122,0.27228,57381.0,57380.0,0.310097]
[1720774365947,0.27228,57381.0,57380.0,0.110097]
[1720774366335,0.2963306,57381.0,57380.0,0.110097]
[1720774367153,0.2963306,57381.0,57380.0,0.310097]
[1720774370444,0.31357884,57381.0,57380.0,0.310097]
[1720774370798,0.1240506,57381.0,57380.0,0.310097]
[1720774373512,0.1240506,57381.0,57380.0,0.419097]
[1720774373713,0.1240506,57381.0,57380.0,0.562997]
[1720774373913,0.0240506,57381.0,57380.0,0.562997]
[1720774374156,0.1,57381.0,57380.0,0.562997]
[1720774375201,0.10521481,57387.0,57380.0,0.562997]
[1720774375202,0.1,57386.0,57385.0,0.407]
[1720774375655,0.12052148,57386.0,57385.0,0.298]
[1720774375946,0.1,57386.0,57385.0,0.298]
[1720774376292,0.09895936,57386.0,57385.0,0.298]
[1720774376548,0.10295936,57386.0,57385.0,0.298]
[1720774377297,0.10295936,57386.0,57385.0,0.2955]
[1720774377728,0.10295936,57386.0,57385.0,0.4875]
[1720774377929,0.10295936,57386.0,57385.0,0.5522]
[1720774378355,0.004,57386.0,57385.0,0.5522]
[1720774378758,0.007,57386.0,57385.0,0.55213545]
[1720774379333,0.02381481,57387.0,57386.0,0.09543545]
[1720774379549,0.1,57391.0,57390.0,0.09543545]
[1720774379774,0.1,57391.0,57390.0,0.48743545]
[1720774380556,0.0814,57392.0,57391.0,0.40443545]
[1720774380758,0.0814,57392.0,57391.0,0.09543545]
[1720774381199,0.73981643,57392.0,57390.0,0.083]
[1720774381344,0.41785453,57391.0,57390.0,0.17843545]
[1720774381546,0.10306353,57391.0,57390.0,0.17843545]
[1720774381784,0.10706353,57391.0,57390.0,0.48743545]
[1720774381997,0.104,57391.0,57390.0,0.55053545]
[1720774382438,0.108,57391.0,57390.0,0.55053545]
[1720774382790,0.104,57391.0,57390.0,0.55053545]
[1720774383130,0.108,57391.0,57390.0,0.55053545]
[1720774383649,0.008,57391.0,57390.0,0.55053545]
[1720774383996,0.008,57391.0,57390.0,0.61053545]
[1720774384414,0.008,57391.0,57390.0,0.69193545]
[1720774384913,0.004,57391.0,57390.0,0.69193545]
[1720774385170,0.41235811,57415.0,57403.0,0.00306353]
[1720774385303,0.0814,57404.0,57403.0,0.06196353]
[1720774385709,0.0814,57404.0,57403.0,0.06096353]
[1720774386762,0.0814,57404.0,57403.0,0.26196353]
[1720774387549,0.08344561,57416.0,57408.0,0.09543545]
[1720774387550,0.0814,57410.0,57408.0,0.09543545]
[1720774387732,0.0814,57410.0,57409.0,0.2]
[1720774387967,0.0814,57415.0,57410.0,0.2]
[1720774388331,0.341195,57415.0,57410.0,0.2]
[1720774388627,0.09380861,57416.0,57409.0,0.2]
[1720774388628,0.0814,57412.0,57409.0,0.2]
[1720774388972,0.0814,57412.0,57409.0,0.196]